bitfinex/quotes_ETHUSD_20250720
["timestamp","ask_amount","ask_price","bid_price","bid_amount"]
[1753015804752,0.4637,3732.9,3732.3,4.14]
[1753015804972,0.4637,3732.9,3732.4,4.141]
[1753015805287,3.1425945,3732.9,3732.5,3.0]
[1753015805433,0.4617,3732.8,3732.7,3.0]
[1753015808268,3.14065413,3732.8,3732.7,3.0]
[1753015808461,2.8126259,3732.7,3732.6,4.141]
[1753015808780,3.2743259,3732.7,3732.6,4.138]
[1753015809691,0.5953,3732.7,3732.6,4.138]
[1753015813954,0.5953,3732.7,3732.6,4.133]
[1753015817075,0.1336,3732.7,3732.6,4.133]
[1753015817390,0.1336,3732.7,3732.1,3.0]
[1753015817391,1.1453,3732.7,3732.1,3.0]
[1753015817571,1.1453,3732.7,3732.2,7.133]
[1753015817572,2.67931624,3732.3,3732.2,7.133]
[1753015817880,3.14101624,3732.3,3732.2,4.133]
[1753015820442,0.55,3732.6,3732.2,4.133]
[1753015820443,0.9404,3732.9,3732.2,4.5465]
[1753015820647,0.9404,3732.9,3732.3,3.45669313]
[1753015821083,0.9404,3732.9,3732.4,0.4299]
[1753015821252,0.9404,3732.9,3732.3,3.0]
[1753015821449,0.4617,3732.8,3732.4,0.84592]
[1753015821655,2.6790259,3732.7,3732.4,0.84592]
[1753015822099,0.4617,3732.6,3732.5,4.133]
[1753015822255,3.14079767,3732.6,3732.5,4.133]
[1753015822577,0.4617,3732.6,3732.5,4.133]
[1753015825889,1.4021,3732.9,3732.5,4.133]
[1753015826103,0.4617,3732.8,3732.5,4.133]
[1753015829906,0.4713,3732.7,3732.5,4.133]
[1753015830264,0.9404,3732.9,3732.5,4.58765]
[1753015830666,0.4733,3732.9,3732.5,4.58765]
[1753015832960,0.002,3732.9,3732.5,4.58765]
[1753015833162,0.4713,3732.8,3732.5,4.58765]
[1753015834501,0.4713,3732.7,3732.5,4.58765]
[1753015834698,0.002,3732.9,3732.5,4.58765]
[1753015834879,0.4713,3732.6,3732.5,4.58765]
[1753015835278,0.4733,3732.9,3732.5,4.58765]
[1753015835511,0.4713,3732.8,3732.5,4.133]
[1753015836072,0.4713,3732.7,3732.5,4.133]
[1753015837104,0.002,3732.9,3732.5,4.133]
[1753015837278,0.4713,3732.8,3732.5,4.133]
[1753015838313,0.4713,3732.7,3732.5,4.133]
[1753015838478,0.4713,3732.6,3732.5,4.133]
[1753015841681,0.4713,3732.6,3732.5,4.134]
[1753015843792,0.002,3734.1,3732.6,0.8815]
[1753015844024,0.002,3734.1,3733.3,2.67859534]
[1753015844219,0.1336,3733.8,3733.3,10.71888129]
[1753015844430,0.1336,3733.8,3733.3,8.477]
[1753015844628,0.1336,3733.8,3733.3,11.15559534]
[1753015844938,0.1336,3733.8,3733.3,13.39997691]
[1753015846982,1e-08,3733.6,3733.5,5.67845185]
[1753015847184,1e-08,3733.6,3733.5,6.58015185]
[1753015847616,1e-08,3733.6,3733.5,7.04365185]
[1753015847817,1e-08,3733.6,3733.5,8.65351473]
[1753015849131,1e-08,3733.6,3733.5,5.51156288]
[1753015849287,1e-08,3733.6,3733.5,10.10606288]
[1753015850091,1e-08,3733.6,3733.5,12.78451473]
[1753015850392,1e-08,3733.6,3733.5,10.10606288]
[1753015851095,1e-08,3733.6,3733.5,4.131]
[1753015851399,0.47130001,3733.6,3733.5,4.131]
[1753015851924,0.47130001,3733.6,3733.0,6.426]
[1753015852130,0.47130001,3733.6,3732.6,0.9218]
[1753015852325,2.67868838,3733.2,3732.6,0.9218]
[1753015852554,2.67868838,3733.2,3732.7,4.131]
[1753015852719,0.4713,3733.1,3732.8,3.0]
[1753015853142,0.4713,3733.4,3732.8,3.02678954]
[1753015853437,0.4713,3733.4,3733.0,3.0]
[1753015853816,2.6784522,3733.5,3733.0,3.0]
[1753015854003,0.4713,3733.3,3733.0,3.0]
[1753015854427,1e-08,3733.6,3733.0,3.7904261]
[1753015854630,0.47130001,3733.6,3733.0,3.0267881]
[1753015856043,0.47130001,3733.6,3733.0,0.0267881]
[1753015856265,0.47130001,3733.6,3733.2,3.0]
[1753015856408,0.47130001,3733.6,3733.3,4.131]
[1753015856409,1e-08,3733.6,3733.3,4.131]
[1753015856738,0.4713,3733.5,3733.3,4.131]
[1753015856959,0.4713,3733.4,3733.3,4.131]
[1753015857942,1e-08,3733.6,3733.4,3.0]
[1753015858142,1e-08,3733.6,3733.5,0.02678451]
[1753015858321,1e-08,3733.6,3733.4,3.0]
[1753015858521,1e-08,3733.6,3733.4,3.7131]
[1753015859031,1e-08,3733.6,3733.5,4.131]
[1753015860221,1e-08,3733.6,3733.5,7.131]
[1753015863234,0.13360001,3733.6,3733.5,7.569]
[1753015863718,0.13360001,3733.6,3733.5,8.5125]
[1753015865247,0.13360001,3733.6,3733.5,3.9435]
[1753015865446,0.13360001,3733.6,3733.5,3.0]
[1753015865745,0.13360001,3733.6,3733.5,7.131]
[1753015869939,0.13360001,3733.6,3733.5,7.13]
[1753015871624,0.13360001,3733.6,3733.5,3.0]
[1753015871825,0.13360001,3733.6,3733.5,7.13]
[1753015872049,0.13360001,3733.6,3733.5,8.37545]
[1753015872349,0.13360001,3733.6,3733.5,4.24545]
[1753015872563,0.13360001,3733.6,3733.5,8.40223451]
[1753015872719,0.13360001,3733.6,3733.5,7.93745]
[1753015872913,0.13360001,3733.6,3733.5,3.80745]
[1753015873155,0.13360001,3733.6,3733.5,7.93745]
[1753015875655,0.13360001,3733.6,3733.5,8.37545]
[1753015875838,0.13360001,3733.6,3733.5,9.29215]
[1753015876672,1e-08,3733.6,3733.5,9.29215]
[1753015881187,1e-08,3733.6,3733.5,11.97060185]
[1753015881491,1e-08,3733.6,3733.5,12.10420185]
[1753015882686,1e-08,3733.6,3733.5,16.63020185]
[1753015884381,1e-08,3733.6,3733.5,19.44920185]
[1753015885383,1e-08,3733.6,3733.5,16.77075]
[1753015885581,1e-08,3733.6,3733.5,19.44920185]
[1753015885746,1e-08,3733.6,3733.5,13.37915]
[1753015886475,1e-08,3733.6,3733.5,19.80215]
[1753015886676,1e-08,3733.6,3733.5,20.24015]
[1753015888584,1e-08,3733.6,3733.5,16.11115]
[1753015888884,1e-08,3733.6,3733.5,20.24015]
[1753015889279,1e-08,3733.6,3733.5,11.14715]
[1753015889480,1e-08,3733.6,3733.5,14.35945]
[1753015890951,1e-08,3733.6,3733.5,7.93645]
[1753015894054,1e-08,3733.6,3733.4,0.001]
[1753015894259,0.4722,3733.5,3733.4,0.001]
[1753015894491,0.4722,3733.5,3733.4,7.13]
[1753015895761,0.4722,3733.5,3733.4,0.001]
[1753015895970,1.3352,3733.5,3733.4,4.13]
[1753015896463,1.8852,3733.5,3733.4,0.001]
[1753015896694,1.8852,3733.5,3733.4,4.13]
[1753015896860,4.56365185,3733.5,3733.4,4.13]
[1753015897787,4.56365185,3733.5,3733.4,0.001]
[1753015897993,4.56365185,3733.5,3733.4,4.13]
[1753015898665,4.56365185,3733.5,3733.4,0.001]
[1753015903857,4.01365185,3733.5,3733.4,0.001]
[1753015904387,1e-08,3733.6,3733.4,0.001]
[1753015904696,2.67838036,3733.6,3733.4,0.001]
[1753015904997,3.15058036,3733.6,3733.4,0.001]
[1753015905584,0.4722,3733.5,3733.4,0.001]
[1753015907700,0.1336,3733.4,3733.3,0.000118]
[1753015909826,0.1336,3733.4,3733.3,0.50820861]
[1753015910190,0.1336,3733.4,3733.3,0.99909456]
[1753015911805,1e-08,3733.6,3733.3,0.99909456]
[1753015911806,1e-08,3733.6,3733.3,1.92290861]
[1753015911977,1e-08,3733.6,3733.3,1.45880861]
[1753015912178,1e-08,3733.6,3733.5,3.0]
[1753015912378,1e-08,3733.6,3733.5,4.13469086]
[1753015912580,1e-08,3733.6,3733.5,4.59879086]
[1753015913023,1e-08,3733.6,3733.5,8.72779086]
[1753015915006,1e-08,3733.6,3733.5,8.26269086]
[1753015915357,1e-08,3733.6,3733.5,4.13469086]
[1753015915492,1e-08,3733.6,3733.5,9.67587537]
[1753015915692,1e-08,3733.6,3733.5,9.64909086]
[1753015916434,1e-08,3733.6,3733.5,5.52109086]
[1753015916604,1e-08,3733.6,3733.5,9.67587537]
[1753015916804,1e-08,3733.6,3733.5,9.64909086]
[1753015918423,1e-08,3733.6,3733.5,9.18499086]
[1753015918636,0.13360001,3733.6,3733.5,9.18499086]
[1753015920209,0.13360001,3733.6,3733.5,5.05699086]
[1753015920410,0.13360001,3733.6,3733.5,9.18499086]
[1753015920801,0.01060001,3733.6,3733.5,5.05699086]
[1753015921000,0.01060001,3733.6,3733.5,1.13469086]
[1753015921200,0.46210001,3733.6,3733.4,6.424]
[1753015921401,0.01060001,3733.6,3733.5,4.127]
[1753015921635,0.01060001,3733.6,3733.5,7.127]
[1753015922135,0.46210001,3733.6,3733.3,0.000118]
[1753015922437,0.4515,3733.5,3733.3,0.000118]
[1753015922747,0.4515,3733.5,3733.4,4.127]
[1753015922748,1.3814,3733.5,3733.4,4.127]
[1753015923238,1.3814,3733.5,3733.3,0.000118]
[1753015923452,0.1336,3733.4,3733.3,0.000118]
[1753015923735,0.1336,3733.4,3733.3,7.127118]
[1753015924741,0.1336,3733.4,3733.3,3.000118]
[1753015925034,0.1336,3733.4,3733.3,7.127118]
[1753015925248,0.1336,3733.4,3733.3,8.8134298]
[1753015925430,0.1336,3733.4,3733.3,8.3531298]
[1753015926018,0.1336,3733.4,3733.3,8.8134298]
[1753015926810,0.002,3733.7,3733.4,3.0]
[1753015927025,0.002,3733.7,3733.3,5.8134298]
[1753015927026,0.002,3733.7,3733.6,3.0]
[1753015927348,0.002,3733.7,3733.6,7.127]
[1753015928543,0.1356,3733.7,3733.6,7.5873]
[1753015933912,0.002,3733.7,3733.6,13.0591]
[1753015934116,0.002,3733.7,3733.6,10.61415328]
[1753015934352,0.002,3733.7,3733.6,13.29253339]
[1753015935817,0.02,3733.9,3733.8,9.41843664]
[1753015936017,0.02,3733.9,3733.8,13.54443664]
[1753015936221,0.02,3733.9,3733.8,14.00473664]
[1753015936433,0.02,3733.9,3733.8,16.42322394]
[1753015937159,0.02,3733.9,3733.8,16.83113594]
[1753015938761,0.02,3733.9,3733.8,21.35713594]
[1753015940765,0.02,3733.9,3733.8,15.8588993]
[1753015940926,0.02,3733.9,3733.8,18.53713594]
[1753015941446,0.02,3733.9,3733.8,14.41213594]
[1753015941744,0.02,3733.9,3733.8,18.53713594]
[1753015943344,0.02,3733.9,3733.8,15.8588993]
[1753015944168,0.02,3733.9,3733.8,11.8674993]
[1753015944464,0.02,3733.9,3733.8,11.4071993]
[1753015944631,0.02,3733.9,3733.8,12.980112]
[1753015944835,0.02,3733.9,3733.8,4.933912]
[1753015945032,0.4715,3733.9,3733.8,4.933912]
[1753015945232,0.4715,3733.9,3733.8,9.058912]
[1753015945431,0.4715,3733.9,3733.8,7.933912]
[1753015945631,0.4715,3733.9,3733.3,0.000118]
[1753015945833,0.1336,3733.4,3733.3,0.000118]
[1753015946073,0.1336,3733.4,3733.3,4.125118]
[1753015946255,0.5851,3733.4,3733.3,7.125118]
[1753015946545,0.5851,3733.4,3733.3,4.125118]
[1753015946769,0.5851,3733.4,3733.3,8.01701575]
[1753015947075,0.1336,3733.4,3733.3,7.9902298]
[1753015948339,0.6016,3733.4,3733.3,7.125118]
[1753015949067,0.6016,3733.4,3733.3,3.000118]
[1753015949372,0.6016,3733.4,3733.3,7.15190395]
[1753015949569,0.6016,3733.4,3733.3,3.000118]
[1753015949786,0.6016,3733.4,3733.3,7.15190395]
[1753015949964,0.6016,3733.4,3733.3,7.125118]
[1753015954877,0.6016,3733.4,3733.3,3.000118]
[1753015955053,0.6016,3733.4,3733.3,7.125118]
[1753015957176,0.1336,3733.4,3733.3,7.125118]
[1753015957379,0.1336,3733.4,3733.3,3.000118]
[1753015957575,0.1336,3733.4,3733.3,7.124118]
[1753015957784,0.1336,3733.4,3733.3,7.4241298]
[1753015962275,0.002,3733.7,3733.4,3.0]
[1753015962448,0.002,3733.7,3733.5,8.67678451]
[1753015962650,0.002,3733.7,3733.5,8.65]
[1753015962979,0.002,3733.7,3733.6,1.48965359]
[1753015963779,0.002,3733.7,3733.6,4.94805359]
[1753015963961,0.002,3733.7,3733.6,8.4873337]
[1753015964161,0.002,3733.7,3733.6,8.4605499]
[1753015964365,0.002,3733.7,3733.6,8.5941499]
[1753015968476,0.002,3733.7,3733.6,13.1201499]
[1753015970485,0.002,3733.7,3733.6,12.6617499]
[1753015970692,0.002,3733.7,3733.6,13.1201499]
[1753015971593,0.002,3733.7,3733.6,12.9865499]
[1753015973259,0.002,3733.7,3733.6,15.8055499]
[1753015973694,0.41286623,3735.0,3734.4,3.0]
[1753015973990,0.41286623,3735.0,3734.5,10.57077734]
[1753015974192,0.41286623,3735.0,3734.5,10.544]
[1753015974490,0.41286623,3735.0,3734.6,0.02677662]
[1753015974692,0.41286623,3735.0,3734.8,3.0]
[1753015974872,0.41286623,3735.0,3734.9,7.122]
[1753015975696,0.002,3735.1,3734.9,4.122]
[1753015975860,0.47,3735.1,3734.9,4.122]
[1753015976191,0.002,3735.1,3734.9,4.122]
[1753015976494,0.468,3735.0,3734.9,4.122]
[1753015976854,0.002,3735.1,3734.9,4.122]
[1753015977500,0.47,3735.1,3734.9,4.122]
[1753015978393,0.002,3735.1,3734.9,4.122]
[1753015978584,0.4753,3735.1,3735.0,0.02677376]
[1753015978785,0.4753,3735.1,3734.9,4.14877447]
[1753015979098,0.002,3735.1,3734.9,4.14877447]
[1753015979281,0.4733,3735.0,3734.9,4.14877447]
[1753015979797,0.002,3735.1,3734.9,4.122]
[1753015980389,0.002,3735.1,3735.0,3.0]
[1753015980775,0.002,3735.1,3735.0,4.121]
[1753015980980,0.002,3735.1,3735.0,7.121]
[1753015983209,0.002,3735.1,3735.0,11.647]
[1753015983567,0.002,3735.1,3735.0,7.526]
[1753015983769,1.389,3735.1,3735.0,4.12]
[1753015986583,0.9157,3735.1,3735.0,4.12]
[1753015986788,1.389,3735.1,3735.0,4.12]
[1753015988499,0.4753,3735.1,3735.0,4.12]
[1753015990132,0.4753,3735.1,3734.7,0.02677591]
[1753015990339,0.4753,3735.1,3734.9,3.0]
[1753015990511,0.4753,3735.1,3735.0,7.12]
[1753015990718,0.002,3735.1,3735.0,7.12]
[1753015991114,0.4753,3735.1,3735.0,7.12]
[1753015995313,12.61,3736.3,3735.0,7.12]
[1753015995314,0.9396,3738.3,3735.2,3.7513]
[1753015995513,0.9396,3738.3,3735.1,3.0]
[1753015995514,0.9376,3736.7,3735.6,0.9323]
[1753015995715,1.57957037,3736.6,3735.6,0.9323]
[1753015995914,0.9376,3736.7,3735.4,3.0]
[1753015996119,0.9376,3736.7,3735.3,10.07323087]
[1753015996120,1.4109,3736.7,3735.6,3.0]
[1753015996477,1.4109,3736.7,3735.8,3.0]
[1753015996658,1.4109,3736.7,3736.0,3.0]
[1753015996842,1.4109,3736.7,3736.2,3.0]
[1753015997044,0.4733,3736.6,3736.4,3.0]
[1753015997353,0.4733,3736.6,3735.3,7.39613]
[1753015997555,0.55,3736.5,3735.4,3.878933]
[1753015997758,2.67672197,3736.0,3735.5,4.174]
[1753015997928,0.4733,3735.9,3735.6,3.0]
[1753015998258,2.67644501,3736.3,3735.6,3.0]
[1753015998259,0.4733,3735.8,3735.6,3.0]
[1753015998445,0.4733,3735.8,3735.4,0.878933]
[1753015998755,0.4733,3735.8,3735.5,4.174]
[1753015998951,0.4733,3735.8,3735.6,3.0]
[1753015999117,0.4733,3735.8,3735.7,4.172]
[1753015999319,0.4733,3735.8,3735.5,3.0]
[1753015999559,0.9376,3736.4,3735.6,4.172]
[1753015999560,0.4733,3735.7,3735.6,4.172]
[1753016001452,0.4733,3735.7,3735.5,3.0]
[1753016001646,1.3814,3735.7,3735.6,4.17]
[1753016002777,0.9081,3735.7,3735.6,4.17]
[1753016003134,1.3814,3735.7,3735.6,4.17]
[1753016003368,1.3814,3735.7,3735.6,4.169]
[1753016003947,1.3814,3735.7,3735.6,7.169]
[1753016004170,0.4733,3735.7,3735.6,7.169]
[1753016004360,1.3814,3736.0,3735.6,7.169]
[1753016004563,1.3819,3736.3,3735.6,4.8859]
[1753016004771,1.3819,3736.3,3735.7,0.02676874]
[1753016004953,1.3819,3736.3,3735.9,3.0]
[1753016005280,3.44330767,3738.3,3736.1,3.0]
[1753016005281,0.4733,3736.7,3736.1,3.0]
[1753016005436,0.4733,3736.7,3736.2,4.166]
[1753016005642,0.9086,3736.8,3736.3,3.0]
[1753016005843,0.9086,3736.8,3736.5,3.0]
[1753016006042,0.4733,3737.0,3736.7,3.0]
[1753016006340,1.3819,3737.4,3736.4,0.4609]
[1753016006541,0.1336,3736.7,3736.6,3.0]
[1753016006746,0.1336,3736.7,3736.6,4.51947089]
[1753016006941,0.1336,3736.7,3736.6,5.00713318]
[1753016007367,0.1336,3737.1,3736.6,4.98037089]
[1753016007574,0.1336,3737.1,3736.7,4.6269]
[1753016007945,0.1336,3737.1,3736.7,4.166]
[1753016008280,0.9086,3737.7,3736.8,4.98560709]
[1753016008578,0.1336,3737.4,3736.9,4.166]
[1753016009177,0.1336,3737.4,3737.0,0.4617]
[1753016009474,0.1336,3737.4,3737.2,3.0]
[1753016009657,0.1336,3737.4,3737.3,7.166]
[1753016010647,0.1336,3737.4,3737.3,7.8826]
[1753016010963,0.1336,3737.4,3737.3,8.3443]
[1753016012579,0.022,3737.9,3737.3,8.3443]
[1753016012743,0.1336,3737.8,3737.4,3.0]
[1753016012947,0.1336,3737.8,3737.5,4.161]
[1753016013175,0.1336,3737.8,3737.6,3.78776]
[1753016013379,0.1336,3737.8,3737.7,7.161]
[1753016013588,0.022,3737.9,3737.8,3.0]
[1753016013888,0.022,3737.9,3737.8,11.61122423]
[1753016014045,0.022,3737.9,3737.8,11.71807053]
[1753016014250,0.022,3737.9,3737.8,13.66590691]
[1753016014748,0.022,3737.9,3737.8,17.82790691]
[1753016014982,0.022,3737.9,3737.8,17.82690691]
[1753016016686,0.022,3737.9,3737.8,17.82590691]
[1753016017882,0.022,3737.9,3737.8,18.37590691]
[1753016018091,0.022,3737.9,3737.8,27.31482691]
[1753016019063,0.022,3737.9,3737.8,18.37590691]
[1753016019296,0.022,3737.9,3737.4,2.74550608]
[1753016019297,0.9207,3737.8,3737.4,0.06989132]
[1753016019506,3.24130288,3737.7,3737.4,0.06989132]
[1753016019806,1.030524,3737.6,3737.4,0.06989132]
[1753016019950,1.462724,3737.6,3737.5,4.219]
[1753016020156,0.4322,3737.6,3737.5,4.219]
[1753016020466,0.1336,3737.5,3737.4,0.06989132]
[1753016021078,0.1336,3737.5,3737.4,4.28789132]
[1753016021279,0.022,3737.9,3737.4,6.45708045]
[1753016021596,0.022,3737.9,3737.5,1.3584]
[1753016021796,0.022,3737.9,3737.6,3.0]
[1753016022370,0.022,3737.9,3737.7,0.4617]
[1753016022570,0.022,3737.9,3737.8,7.239]
[1753016022870,0.022,3737.9,3737.8,8.09874]
[1753016023066,0.022,3737.9,3737.8,3.85974]
[1753016023265,0.022,3737.9,3737.8,7.238]
[1753016023470,0.022,3737.9,3737.8,3.0]
[1753016023668,0.022,3737.9,3737.8,4.237]
[1753016023873,0.4542,3737.9,3737.8,4.237]
[1753016024194,0.4542,3737.9,3737.4,0.06989132]
[1753016024389,0.022,3737.9,3737.6,3.0]
[1753016024560,0.022,3737.9,3737.8,0.8611]
[1753016024761,0.022,3737.9,3737.8,14.5428537]
[1753016024961,0.022,3737.9,3737.8,14.9778]
[1753016025168,0.022,3737.9,3737.8,17.65317053]
[1753016028097,0.022,3737.9,3737.8,18.20317053]
[1753016028299,0.022,3737.9,3737.8,20.36872239]
[1753016028795,0.022,3737.9,3737.8,19.50762239]
[1753016029097,0.022,3737.9,3737.8,47.44468539]
[1753016029266,0.022,3737.9,3737.8,43.21809639]
[1753016029464,0.002,3738.7,3738.6,2.67479805]
[1753016029666,0.002,3738.7,3738.6,11.04947786]
[1753016029976,0.002,3738.7,3738.6,11.51117786]
[1753016031270,0.002,3738.7,3738.6,11.64477786]
[1753016033703,0.02,3739.9,3738.8,6.90985496]
[1753016033704,1e-08,3738.9,3738.8,6.90985496]
[1753016033877,1e-08,3738.9,3738.8,41.90657314]
[1753016034082,1e-08,3738.9,3738.8,40.69590414]
[1753016034565,1e-08,3738.9,3738.8,39.51515714]
[1753016035304,0.02,3739.9,3738.8,39.51515714]
[1753016035305,0.002,3739.5,3739.4,11.60692581]
[1753016035504,0.002,3739.5,3739.4,25.94505854]
[1753016035674,0.002,3739.5,3739.4,26.02362172]
[1753016036902,0.002,3739.5,3739.4,28.83662172]
[1753016038103,0.002,3739.5,3739.4,41.83674172]
[1753016038305,0.02,3739.9,3739.8,2.67393978]
[1753016038475,0.02,3739.9,3739.8,9.93367917]
[1753016038676,0.02,3739.9,3739.8,16.58972024]
[1753016038873,0.02,3739.9,3739.8,12.35672024]
[1753016039100,0.02,3739.9,3739.8,16.58872024]
[1753016039277,0.02,3739.9,3739.8,17.75372024]
[1753016040205,0.02,3739.9,3739.8,13.51972024]
[1753016040413,0.02,3739.9,3739.8,17.75372024]
[1753016040907,0.02,3739.9,3739.8,13.51972024]
[1753016041114,0.02,3739.9,3739.8,17.75172024]
[1753016042614,0.02,3739.9,3739.8,21.11472024]
[1753016043116,0.002,3740.2,3740.1,6.5358253]
[1753016043422,0.002,3740.2,3740.1,13.52478848]
[1753016043573,0.002,3740.2,3740.1,2.75896318]
[1753016043773,0.002,3740.2,3740.1,13.3187253]
[1753016044213,0.002,3740.2,3740.1,16.2029253]
[1753016044379,0.002,3740.2,3740.1,20.9899253]
[1753016045504,0.02,3740.9,3740.8,9.32802497]
[1753016045685,0.02,3740.9,3740.8,13.57002497]
[1753016045886,0.02,3740.9,3740.8,7.75015839]
[1753016046070,0.4804,3740.9,3740.8,11.99115839]
[1753016046276,1.3454,3741.9,3741.3,2.6728122]
[1753016046476,1.3454,3741.9,3741.4,4.244]
[1753016046676,0.4604,3741.8,3740.8,2.07693342]
[1753016046988,0.4604,3741.8,3741.1,3.0]
[1753016047174,0.4604,3741.8,3741.4,3.0]
[1753016047373,0.4604,3741.7,3741.6,3.0]
[1753016047607,0.4604,3741.7,3741.6,7.247]
[1753016047799,0.02,3741.9,3741.8,2.67251055]
[1753016047997,0.02,3741.9,3741.8,17.43136671]
[1753016048197,0.02,3741.9,3741.8,17.40464161]
[1753016049315,0.02,3741.9,3741.8,20.66074161]
[1753016050379,0.02,3741.9,3741.8,17.84774161]
[1753016051627,1e-08,3741.9,3741.8,31.81723061]
[1753016051779,1e-08,3741.9,3741.8,19.28824161]
[1753016051986,1e-08,3741.9,3741.8,15.03624161]
[1753016052203,1e-08,3741.9,3741.8,27.81554561]
[1753016052380,1e-08,3741.9,3741.8,15.03624161]
[1753016052592,1e-08,3741.9,3741.8,21.95734161]
[1753016053230,1e-08,3741.9,3741.8,24.90394161]
[1753016053898,1e-08,3741.9,3741.8,19.42584161]
[1753016054282,1e-08,3741.9,3741.8,21.40038061]
[1753016054479,1e-08,3741.9,3741.8,16.42684161]
[1753016054784,1e-08,3741.9,3741.8,14.17674161]
[1753016055016,1e-08,3741.9,3741.8,11.87573106]
[1753016055319,1e-08,3741.9,3741.8,17.54824161]
[1753016055526,1e-08,3741.9,3741.8,17.54724161]
[1753016056032,1e-08,3741.9,3741.8,18.54034161]
[1753016056382,1e-08,3741.9,3741.8,18.53734161]
[1753016056788,1e-08,3741.9,3741.8,17.98734161]
[1753016058423,1e-08,3741.9,3741.8,6.88224161]
[1753016058624,0.00200001,3741.9,3741.8,13.29024161]
[1753016058839,0.00200001,3741.9,3741.8,10.61773106]
[1753016059060,0.46240001,3741.9,3741.8,6.408]
[1753016059218,0.46240001,3741.9,3741.8,10.661]
[1753016059590,0.46240001,3741.9,3741.8,13.661]
[1753016059813,0.46240001,3741.9,3741.8,6.408]
[1753016059998,0.46240001,3741.9,3741.8,10.662]
[1753016060418,0.46240001,3741.9,3741.8,13.662]
[1753016061226,0.00200001,3741.9,3741.8,15.0282]
[1753016061418,0.46240001,3741.9,3741.8,13.663]
[1753016061927,0.8627,3741.8,3740.9,6.408]
[1753016062111,0.4604,3741.7,3740.9,6.408]
[1753016062423,0.8627,3741.6,3741.0,4.268]
[1753016062856,0.4604,3741.5,3741.1,3.0]
[1753016062990,0.4604,3741.5,3741.0,3.0]
[1753016063192,0.8627,3741.4,3740.9,6.408]
[1753016063529,0.4604,3741.3,3741.0,4.266]
[1753016063692,0.8627,3741.2,3740.9,6.408]
[1753016063892,0.8627,3741.0,3740.9,6.408]
[1753016064092,1.3231,3741.0,3740.9,10.673]
[1753016064432,1.3231,3741.0,3740.9,7.265]
[1753016064593,1.3231,3741.0,3740.9,4.265]
[1753016065227,1.3231,3741.0,3739.8,0.001]
[1753016065228,1.449,3740.9,3739.8,0.001]
[1753016065394,0.55,3741.5,3739.8,0.001]
[1753016065594,0.899,3740.6,3739.9,1.507]
[1753016065929,0.899,3740.4,3739.8,0.001]
[1753016066219,3.57263562,3740.3,3740.0,4.275]
[1753016066425,0.899,3740.0,3739.8,0.001]
[1753016066662,0.55,3740.9,3739.8,0.001]
[1753016066663,0.899,3739.9,3739.8,0.001]
[1753016066814,0.899,3739.9,3739.8,4.276]
[1753016066815,1.3594,3739.9,3739.8,4.276]
[1753016067736,1.3594,3739.9,3739.8,0.001]
[1753016068109,1.3594,3739.9,3739.8,4.275]
[1753016068743,1.9094,3739.9,3739.8,4.275]
[1753016071263,1.9094,3739.9,3739.8,0.001]
[1753016072520,4.58326828,3739.9,3739.8,0.001]
[1753016074047,0.55,3739.8,3739.7,3.8309375]
[1753016074235,1.1293,3739.8,3739.1,0.02]
[1753016074435,0.899,3739.7,3739.2,4.264]
[1753016074823,0.55,3739.3,3739.2,4.264]
[1753016075024,0.4457,3739.3,3739.2,4.264]
[1753016075230,1.8605,3739.3,3739.2,4.264]
[1753016075818,1.4148,3739.2,3739.1,0.02]
[1753016076019,1.8605,3739.2,3739.1,4.281]
[1753016077416,1.8605,3739.2,3739.1,0.02]
[1753016078580,1.8605,3739.2,3739.1,1e-08]
[1753016079223,4.53486884,3739.2,3739.1,1e-08]
[1753016080069,4.53486884,3739.2,3739.1,0.00100001]
[1753016080729,7.53486884,3739.2,3739.1,0.00100001]
[1753016081131,3.22494115,3738.4,3738.3,0.001]
[1753016081435,4.06434115,3738.4,3738.3,0.001]
[1753016081641,4.51004115,3738.4,3738.3,0.001]
[1753016083930,3.96004115,3738.4,3738.3,0.001]
[1753016084547,4.51004115,3738.4,3738.3,0.001]
[1753016084749,3.51434115,3738.4,3738.3,0.001]
[1753016084950,3.96004115,3738.4,3738.3,0.001]
[1753016085238,4.51004115,3738.4,3738.3,0.001]
[1753016085542,1.8351,3738.4,3738.3,0.001]
[1753016085943,0.55,3738.4,3738.3,0.001]
[1753016086289,3.0,3739.5,3738.3,0.4403]
[1753016086290,0.8229,3739.0,3738.3,0.4403]
[1753016086485,3.94294673,3739.3,3738.3,0.001]
[1753016086967,2.67436884,3739.2,3738.3,0.001]
[1753016087269,0.4457,3739.2,3738.3,0.001]
[1753016087574,0.8229,3738.6,3738.4,4.252]
[1753016087944,0.8229,3738.9,3738.4,4.252]
[1753016088151,0.8229,3738.9,3738.4,4.6913]
[1753016089166,2.67445709,3739.1,3738.4,4.6913]
[1753016089370,1.2686,3739.2,3738.4,4.6913]
[1753016089578,1.2686,3739.2,3738.4,4.252]
[1753016089778,2.67463773,3738.9,3738.4,4.252]
[1753016090656,2.67457777,3739.0,3738.4,4.252]
[1753016090856,3.94301154,3739.2,3738.4,4.252]
[1753016091095,2.67458686,3738.9,3738.4,4.252]